fUSD/lending_fUSD_20240425
["ID","MTS","AMOUNT","RATE_DAILY","PERIOD"]
[323560138,1714085481170,-500.0,0.00012054,2]
[323560139,1714085481180,-500.0,0.00012054,2]
[323560140,1714085481190,-500.0,0.00012054,2]
[323560141,1714085481200,-500.0,0.00012054,2]
[323560142,1714085481210,-500.0,0.00012054,2]
[323560143,1714085481220,-500.0,0.00012054,2]
[323560144,1714085481230,-506.23,0.00012054,2]
[323560145,1714085481418,-500.0,0.00012054,2]
[323560146,1714085481475,-500.0,0.00012054,2]
[323560147,1714085481485,-500.0,0.00012054,2]
[323560148,1714085481496,-550.67,0.00012054,2]
[323560149,1714085481506,-500.0,0.00012054,2]
[323560150,1714085481515,-1238.99,0.00012054,2]
[323560151,1714085481525,-500.0,0.00012054,2]
[323560152,1714085481535,-500.0,0.00012054,2]
[323560153,1714085481545,-1017.54,0.00012054,2]
[323560154,1714085481555,-1086.35,0.00012054,2]
[323560155,1714085481566,-520.36,0.00012054,2]
[323560156,1714085481576,-500.0,0.00012054,2]
[323560157,1714085481586,-500.0,0.00012054,2]
[323560158,1714085481596,-500.0,0.00012054,2]
[323560159,1714085481606,-1262.81,0.00012054,2]
[323560160,1714085481616,-500.0,0.00012054,2]
[323560161,1714085481626,-500.0,0.00012054,2]
[323560162,1714085481636,-808.93,0.00012054,2]
[323560163,1714085481646,-500.0,0.00012054,2]
[323560164,1714085481656,-500.0,0.00012054,2]
[323560165,1714085481666,-558.8,0.00012054,2]
[323560166,1714085481675,-822.62,0.00012054,2]
[323560167,1714085481685,-500.0,0.00012054,2]
[323560168,1714085481695,-500.0,0.00012054,2]
[323560169,1714085481706,-500.0,0.00012054,2]
[323560170,1714085481716,-500.0,0.00012054,2]
[323560171,1714085481726,-500.0,0.00012054,2]
[323560172,1714085481736,-566.45,0.00012054,2]
[323560173,1714085481746,-528.33,0.00012054,2]
[323560174,1714085481756,-500.0,0.00012054,2]
[323560175,1714085481765,-500.0,0.00012054,2]
[323560176,1714085481775,-500.0,0.00012054,2]
[323560177,1714085481787,-500.0,0.00012054,2]
[323560178,1714085481797,-500.0,0.00012054,2]
[323560179,1714085481807,-500.0,0.00012054,2]
[323560180,1714085481817,-500.0,0.00012054,2]
[323560181,1714085481827,-500.0,0.00012054,2]
[323560182,1714085481837,-735.3,0.00012054,2]
[323560183,1714085481847,-500.0,0.00012054,2]
[323560184,1714085481856,-500.0,0.00012054,2]
[323560185,1714085481866,-500.0,0.00012054,2]
[323560186,1714085481875,-500.0,0.00012054,2]
[323560187,1714085481885,-599.76,0.00012054,2]
[323560188,1714085481895,-500.0,0.00012054,2]
[323560189,1714085481905,-500.0,0.00012054,2]
[323560190,1714085481914,-500.0,0.00012054,2]
[323560191,1714085481923,-500.0,0.00012054,2]
[323560192,1714085481933,-500.0,0.00012054,2]
[323560193,1714085481944,-500.0,0.00012054,2]
[323560194,1714085481954,-529.91,0.00012054,2]
[323560195,1714085481965,-580.16,0.00012054,2]
[323560196,1714085481974,-500.0,0.00012054,2]
[323560197,1714085481985,-500.0,0.00012054,2]
[323560198,1714085481994,-500.0,0.00012054,2]
[323560199,1714085482005,-677.41,0.00012054,2]
[323560200,1714085482015,-500.0,0.00012054,2]
[323560201,1714085482024,-1492.69,0.00012054,2]
[323560202,1714085482034,-500.0,0.00012054,2]
[323560203,1714085482043,-500.0,0.00012054,2]
[323560204,1714085482053,-500.0,0.00012054,2]
[323560205,1714085482063,-500.0,0.00012054,2]
[323560206,1714085482073,-500.0,0.00012054,2]
[323560207,1714085482083,-500.0,0.00012054,2]
[323560208,1714085482092,-500.0,0.00012054,2]
[323560209,1714085482101,-500.0,0.00012054,2]
[323560210,1714085482111,-500.0,0.00012054,2]
[323560211,1714085482121,-597.75,0.00012054,2]
[323560212,1714085482130,-500.0,0.00012054,2]
[323560213,1714085482140,-500.0,0.00012054,2]
[323560214,1714085482150,-500.0,0.00012054,2]
[323560215,1714085482160,-500.0,0.00012054,2]
[323560216,1714085482170,-500.0,0.00012054,2]
[323560217,1714085482179,-500.0,0.00012054,2]
[323560218,1714085482190,-500.0,0.00012054,2]
[323560219,1714085482199,-500.0,0.00012054,2]
[323560220,1714085482209,-500.0,0.00012054,2]
[323560221,1714085482218,-500.0,0.00012054,2]
[323560222,1714085482228,-500.0,0.00012054,2]
[323560223,1714085482238,-323.02855253,0.00012054,2]
[323560224,1714085482248,-500.0,0.00012054,2]
[323560225,1714085482258,-500.0,0.00012054,2]
[323560226,1714085482268,-500.0,0.00012054,2]
[323560227,1714085482277,-500.0,0.00012054,2]
[323560228,1714085482287,-916.79,0.00012054,2]
[323560229,1714085482297,-500.0,0.00012054,2]
[323560230,1714085482308,-500.0,0.00012054,2]
[323560231,1714085482318,-684.77,0.00012054,2]
[323560232,1714085482328,-500.0,0.00012054,2]
[323560233,1714085482337,-274.83,0.00012054,2]
[323560234,1714085482348,-1105.57,0.00012054,2]
[323560235,1714085482358,-500.0,0.00012054,2]
[323560236,1714085482368,-1170.58,0.00012054,2]
[323560237,1714085482378,-608.36,0.00012054,2]
[323560238,1714085482388,-528.3,0.00012054,2]
[323560239,1714085482398,-500.0,0.00012054,2]
[323560240,1714085482407,-500.0,0.00012054,2]
[323560241,1714085482416,-500.0,0.00012054,2]
[323560242,1714085482427,-500.0,0.00012054,2]
[323560243,1714085482437,-500.0,0.00012054,2]
[323560244,1714085482448,-500.0,0.00012054,2]
[323560245,1714085482458,-500.0,0.00012054,2]
[323560246,1714085482467,-500.0,0.00012054,2]
[323560247,1714085482477,-500.0,0.00012054,2]
[323560248,1714085482487,-500.0,0.00012054,2]
[323560249,1714085482497,-500.0,0.00012054,2]
[323560250,1714085482506,-500.0,0.00012054,2]
[323560251,1714085482516,-500.0,0.00012054,2]
[323560252,1714085482526,-503.4,0.00012054,2]
[323560253,1714085482536,-594.35,0.00012054,2]
[323560254,1714085482545,-500.0,0.00012054,2]
[323560255,1714085482555,-500.0,0.00012054,2]
[323560256,1714085482564,-500.0,0.00012054,2]
[323560257,1714085482574,-500.0,0.00012054,2]
[323560258,1714085482583,-500.0,0.00012054,2]
[323560259,1714085482593,-500.0,0.00012054,2]
[323560260,1714085482602,-500.0,0.00012054,2]
[323560261,1714085482611,-500.0,0.00012054,2]
[323560262,1714085482621,-500.0,0.00012054,2]
[323560263,1714085482630,-500.0,0.00012054,2]
[323560264,1714085482640,-500.0,0.00012054,2]
[323560265,1714085482649,-500.0,0.00012054,2]
[323560266,1714085482658,-500.0,0.00012054,2]
[323560267,1714085482667,-500.0,0.00012054,2]
[323560268,1714085482677,-551.05,0.00012054,2]
[323560269,1714085482686,-500.0,0.00012054,2]
[323560270,1714085482697,-1355.96,0.00012054,2]
[323560271,1714085482707,-500.0,0.00012054,2]
[323560272,1714085482716,-500.0,0.00012054,2]
[323560273,1714085482726,-500.0,0.00012054,2]
[323560274,1714085482736,-500.0,0.00012054,2]
[323560275,1714085482745,-500.0,0.00012054,2]
[323560276,1714085482755,-338.1630754,0.00012054,2]
[323560277,1714085482765,-500.0,0.00012054,2]
[323560278,1714085482774,-500.0,0.00012054,2]
[323560279,1714085482783,-500.0,0.00012054,2]
[323560280,1714085482793,-703.39,0.00012054,2]
[323560281,1714085482802,-500.0,0.00012054,2]
[323560282,1714085482811,-621.43,0.00012054,2]
[323560283,1714085482821,-500.0,0.00012054,2]
[323560284,1714085482830,-500.0,0.00012054,2]
[323560285,1714085482840,-500.0,0.00012054,2]
[323560286,1714085482850,-500.0,0.00012054,2]
[323560287,1714085482859,-500.0,0.00012054,2]
[323560288,1714085482869,-763.72,0.00012054,2]
[323560289,1714085482879,-500.0,0.00012054,2]
[323560290,1714085482888,-500.0,0.00012054,2]
[323560291,1714085482898,-893.24,0.00012054,2]
[323560292,1714085482908,-500.0,0.00012054,2]
[323560293,1714085482917,-500.0,0.00012054,2]
[323560294,1714085482927,-500.0,0.00012054,2]
[323560295,1714085482936,-500.0,0.00012054,2]
[323560296,1714085482946,-500.0,0.00012054,2]
[323560297,1714085482956,-500.0,0.00012054,2]
[323560298,1714085482970,-500.0,0.00012054,2]
[323560299,1714085482980,-500.0,0.00012054,2]
[323560300,1714085482990,-500.0,0.00012054,2]
[323560301,1714085483000,-500.0,0.00012054,2]
[323560302,1714085483011,-500.0,0.00012054,2]
[323560303,1714085483021,-500.0,0.00012054,2]
[323560304,1714085483031,-500.0,0.00012054,2]
[323560305,1714085483041,-529.88,0.00012054,2]
[323560306,1714085483050,-500.0,0.00012054,2]
[323560307,1714085483061,-1422.47,0.00012054,2]
[323560308,1714085483071,-500.0,0.00012054,2]
[323560309,1714085483080,-500.0,0.00012054,2]
[323560310,1714085483090,-513.39,0.00012054,2]
[323560311,1714085483099,-500.0,0.00012054,2]
[323560312,1714085483109,-500.0,0.00012054,2]
[323560313,1714085483118,-500.0,0.00012054,2]
[323560314,1714085483128,-500.0,0.00012054,2]
[323560315,1714085483139,-552.84,0.00012054,2]
[323560316,1714085483149,-975.6,0.00012054,2]
[323560317,1714085483158,-760.44,0.00012054,2]
[323560318,1714085483168,-500.0,0.00012054,2]
[323560319,1714085483178,-500.0,0.00012054,2]
[323560320,1714085483188,-500.0,0.00012054,2]
[323560321,1714085483199,-500.0,0.00012054,2]
[323560322,1714085483209,-500.0,0.00012054,2]
[323560323,1714085483219,-500.0,0.00012054,2]
[323560324,1714085483229,-751.7,0.00012054,2]
[323560325,1714085483240,-500.0,0.00012054,2]
[323560326,1714085483250,-500.0,0.00012054,2]
[323560327,1714085483259,-500.0,0.00012054,2]
[323560328,1714085483269,-500.0,0.00012054,2]
[323560329,1714085483279,-500.0,0.00012054,2]
[323560330,1714085483289,-372.8,0.00012054,2]
[323560331,1714085483298,-500.0,0.00012054,2]
[323560332,1714085483308,-500.0,0.00012054,2]
[323560333,1714085483317,-500.0,0.00012054,2]
[323560334,1714085483327,-500.0,0.00012054,2]
[323560335,1714085483337,-500.0,0.00012054,2]
[323560336,1714085483347,-714.94,0.00012054,2]
[323560337,1714085483356,-500.0,0.00012054,2]
[323560338,1714085483366,-500.0,0.00012054,2]
[323560339,1714085483376,-500.0,0.00012054,2]
[323560340,1714085483386,-500.0,0.00012054,2]
[323560341,1714085483396,-500.0,0.00012054,2]
[323560342,1714085483407,-500.0,0.00012054,2]
[323560343,1714085483417,-500.0,0.00012054,2]
[323560344,1714085483427,-500.0,0.00012054,2]
[323560345,1714085483437,-1258.55,0.00012054,2]
[323560346,1714085483448,-500.0,0.00012054,2]
[323560347,1714085483457,-500.0,0.00012054,2]
[323560348,1714085483467,-500.0,0.00012054,2]
[323560349,1714085483476,-500.0,0.00012054,2]
[323560350,1714085483486,-500.0,0.00012054,2]
[323560351,1714085483495,-500.0,0.00012054,2]
[323560352,1714085483505,-695.52,0.00012054,2]
[323560353,1714085483515,-500.0,0.00012054,2]
[323560354,1714085483524,-500.0,0.00012054,2]
[323560355,1714085483534,-500.0,0.00012054,2]
[323560356,1714085483544,-500.0,0.00012054,2]
[323560357,1714085483554,-500.0,0.00012054,2]
[323560358,1714085483563,-500.0,0.00012054,2]
[323560359,1714085483573,-500.0,0.00012054,2]
[323560360,1714085483582,-500.0,0.00012054,2]
[323560361,1714085483591,-500.0,0.00012054,2]
[323560362,1714085483601,-500.0,0.00012054,2]
[323560363,1714085483610,-4888.82,0.00012054,2]
[323560364,1714085483619,-1378.04,0.00012054,2]
[323560365,1714085483628,-768.76,0.00012054,2]
[323560366,1714085483638,-500.0,0.00012054,2]
[323560367,1714085483648,-500.0,0.00012054,2]
[323560368,1714085483658,-500.0,0.00012054,2]
[323560369,1714085483668,-500.0,0.00012054,2]
[323560370,1714085483678,-500.0,0.00012054,2]
[323560371,1714085483688,-3107.28,0.00012054,2]
[323560372,1714085483699,-500.0,0.00012054,2]
[323560373,1714085483708,-3358.04,0.00012054,2]
[323560374,1714085483718,-500.0,0.00012054,2]
[323560375,1714085483727,-500.0,0.00012054,2]
[323560376,1714085483737,-500.0,0.00012054,2]
[323560377,1714085483747,-500.0,0.00012054,2]
[323560378,1714085483756,-500.0,0.00012054,2]
[323560379,1714085483766,-500.0,0.00012054,2]
[323560380,1714085483776,-500.0,0.00012054,2]
[323560381,1714085483786,-500.0,0.00012054,2]
[323560382,1714085483796,-500.0,0.00012054,2]
[323560383,1714085483805,-531.56,0.00012054,2]
[323560384,1714085483815,-500.0,0.00012054,2]
[323560385,1714085483825,-1350.86,0.00012054,2]
[323560386,1714085483835,-1869.75,0.00012054,2]
[323560387,1714085483845,-500.0,0.00012054,2]
[323560388,1714085483854,-602.42,0.00012054,2]
[323560389,1714085483864,-500.0,0.00012054,2]
[323560390,1714085483874,-500.0,0.00012054,2]
[323560391,1714085483884,-500.0,0.00012054,2]
[323560392,1714085483894,-500.0,0.00012054,2]
[323560393,1714085483904,-564.41,0.00012054,2]
[323560394,1714085483915,-500.0,0.00012054,2]
[323560395,1714085483990,-500.0,0.00012054,2]
[323560396,1714085484000,-877.83,0.00012054,2]
[323560397,1714085484010,-10975.42,0.00012054,2]
[323560398,1714085484020,-1140.21,0.00012054,2]
[323560399,1714085484029,-626.9,0.00012054,2]
[323560400,1714085484039,-500.0,0.00012054,2]
[323560401,1714085484050,-500.0,0.00012054,2]
[323560402,1714085484060,-500.0,0.00012054,2]
[323560403,1714085484070,-500.0,0.00012054,2]
[323560404,1714085484079,-500.0,0.00012054,2]
[323560405,1714085484089,-688.34,0.00012054,2]
[323560406,1714085484099,-500.0,0.00012054,2]
[323560407,1714085484108,-7204.56,0.00012054,2]
[323560408,1714085484118,-500.0,0.00012054,2]
[323560409,1714085484128,-1096.01,0.00012054,2]
[323560410,1714085484138,-500.0,0.00012054,2]
[323560411,1714085484148,-500.0,0.00012054,2]
[323560412,1714085484158,-500.0,0.00012054,2]
[323560413,1714085484168,-500.0,0.00012054,2]
[323560414,1714085484177,-1301.53,0.00012054,2]
[323560415,1714085484187,-500.0,0.00012054,2]
[323560416,1714085484198,-500.0,0.00012054,2]
[323560417,1714085484208,-500.0,0.00012054,2]
[323560418,1714085484218,-800.08,0.00012054,2]
[323560419,1714085484228,-500.0,0.00012054,2]
[323560420,1714085484238,-500.0,0.00012054,2]
[323560421,1714085484247,-1612.06,0.00012054,2]
[323560422,1714085484257,-443.57,0.00012054,2]
[323560423,1714085484267,-500.0,0.00012054,2]
[323560424,1714085484277,-500.0,0.00012054,2]
[323560425,1714085484286,-500.0,0.00012054,2]
[323560426,1714085484296,-1347.61,0.00012054,2]
[323560427,1714085484306,-500.0,0.00012054,2]
[323560428,1714085484316,-1695.57,0.00012054,2]
[323560429,1714085484325,-413.0896544,0.00012054,2]
[323560430,1714085484335,-500.0,0.00012054,2]
[323560431,1714085484345,-500.0,0.00012054,2]
[323560432,1714085484354,-500.0,0.00012054,2]
[323560433,1714085484364,-500.0,0.00012054,2]
[323560434,1714085484373,-500.0,0.00012054,2]
[323560435,1714085484383,-547.46,0.00012054,2]
[323560436,1714085484392,-1214.77,0.00012054,2]
[323560437,1714085484402,-580.35,0.00012054,2]
[323560438,1714085484411,-959.67,0.00012054,2]
[323560439,1714085484420,-1214.98,0.00012054,2]
[323560440,1714085484430,-500.0,0.00012054,2]
[323560441,1714085484439,-1257.77,0.00012054,2]
[323560442,1714085484449,-1160.75,0.00012054,2]
[323560443,1714085484458,-500.0,0.00012054,2]
[323560444,1714085484467,-500.0,0.00012054,2]
[323560445,1714085484476,-500.0,0.00012054,2]
[323560446,1714085484487,-500.0,0.00012054,2]
[323560447,1714085484496,-500.0,0.00012054,2]
[323560448,1714085484505,-500.0,0.00012054,2]
[323560449,1714085484514,-500.0,0.00012054,2]
[323560450,1714085484524,-500.0,0.00012054,2]
[323560451,1714085484533,-678.82,0.00012054,2]
[323560452,1714085484542,-500.0,0.00012054,2]
[323560453,1714085484552,-1162.58,0.00012054,2]
[323560454,1714085484562,-500.0,0.00012054,2]
[323560455,1714085484572,-1677.5,0.00012054,2]
[323560456,1714085484582,-500.0,0.00012054,2]
[323560457,1714085484591,-500.0,0.00012054,2]
[323560458,1714085484601,-500.0,0.00012054,2]
[323560459,1714085484610,-500.0,0.00012054,2]
[323560460,1714085484619,-500.0,0.00012054,2]
[323560461,1714085484629,-500.0,0.00012054,2]
[323560462,1714085484638,-500.0,0.00012054,2]
[323560463,1714085484647,-500.0,0.00012054,2]
[323560464,1714085484657,-500.0,0.00012054,2]
[323560465,1714085484666,-1963.2,0.00012054,2]
[323560466,1714085484676,-500.0,0.00012054,2]
[323560467,1714085484686,-500.0,0.00012054,2]
[323560468,1714085484697,-949.39,0.00012054,2]
[323560469,1714085484706,-500.0,0.00012054,2]
[323560470,1714085484715,-1358.37,0.00012054,2]
[323560471,1714085484725,-1842.75,0.00012054,2]
[323560472,1714085484734,-500.0,0.00012054,2]
[323560473,1714085484744,-597.0,0.00012054,2]
[323560474,1714085484754,-500.0,0.00012054,2]
[323560475,1714085484763,-500.0,0.00012054,2]
[323560476,1714085484772,-500.0,0.00012054,2]
[323560477,1714085484781,-500.0,0.00012054,2]
[323560478,1714085484791,-1218.91,0.00012054,2]
[323560479,1714085484800,-500.0,0.00012054,2]
[323560480,1714085484810,-500.0,0.00012054,2]
[323560481,1714085484819,-500.0,0.00012054,2]
[323560482,1714085484829,-18817.42,0.00012054,2]
[323560483,1714085484838,-500.0,0.00012054,2]
[323560484,1714085484848,-500.0,0.00012054,2]
[323560485,1714085484857,-1467.01,0.00012054,2]
[323560486,1714085484867,-500.0,0.00012054,2]
[323560487,1714085484876,-845.36,0.00012054,2]
[323560488,1714085484886,-2011.09,0.00012054,2]
[323560489,1714085484897,-1133.23,0.00012054,2]
[323560490,1714085484906,-500.0,0.00012054,2]
[323560491,1714085484916,-555.91,0.00012054,2]
[323560492,1714085484926,-1244.48,0.00012054,2]
[323560493,1714085484936,-563.44,0.00012054,2]
[323560494,1714085484949,-2202.75,0.00012054,2]
[323560495,1714085484959,-500.0,0.00012054,2]
[323560496,1714085484969,-500.0,0.00012054,2]
[323560497,1714085484982,-500.0,0.00012054,2]
[323560498,1714085484991,-500.0,0.00012054,2]
[323560499,1714085485001,-582.63,0.00012054,2]
[323560500,1714085485011,-1325.13,0.00012054,2]
[323560501,1714085485021,-1305.74,0.00012054,2]
[323560502,1714085485031,-1250.46,0.00012054,2]
[323560503,1714085485041,-580.53,0.00012054,2]
[323560504,1714085485052,-500.0,0.00012054,2]
[323560505,1714085485062,-789.03,0.00012054,2]
[323560506,1714085485072,-537.77,0.00012054,2]
[323560507,1714085485082,-7182.33,0.00012054,2]
[323560508,1714085485093,-500.0,0.00012054,2]
[323560509,1714085485104,-1695.58,0.00012054,2]
[323560510,1714085485113,-500.0,0.00012054,2]
[323560511,1714085485123,-150.0,0.00012054,2]
[323560512,1714085485133,-554.02,0.00012054,2]
[323560513,1714085485143,-500.0,0.00012054,2]
[323560514,1714085485153,-552.27775989,0.00012054,2]
[323560515,1714085485163,-500.0,0.00012054,2]
[323560516,1714085485173,-500.0,0.00012054,2]
[323560517,1714085485183,-500.0,0.00012054,2]
[323560518,1714085485196,-500.0,0.00012054,2]
[323560519,1714085485206,-500.0,0.00012054,2]
[323560520,1714085485217,-500.0,0.00012054,2]
[323560521,1714085485227,-580.07,0.00012054,2]
[323560522,1714085485237,-1058.67,0.00012054,2]
[323560523,1714085485246,-625.88,0.00012054,2]
[323560524,1714085485256,-500.0,0.00012054,2]
[323560525,1714085485266,-731.33,0.00012054,2]
[323560526,1714085485276,-1016.54,0.00012054,2]
[323560527,1714085485285,-530.46,0.00012054,2]
[323560528,1714085485295,-500.0,0.00012054,2]
[323560529,1714085485305,-500.0,0.00012054,2]
[323560530,1714085485314,-971.27,0.00012054,2]
[323560531,1714085485324,-500.0,0.00012054,2]
[323560532,1714085485333,-500.0,0.00012054,2]
[323560533,1714085485342,-500.0,0.00012054,2]
[323560534,1714085485352,-500.0,0.00012054,2]
[323560535,1714085485362,-500.0,0.00012054,2]
[323560536,1714085485371,-500.0,0.00012054,2]
[323560537,1714085485381,-500.0,0.00012054,2]
[323560538,1714085485391,-500.0,0.00012054,2]
[323560539,1714085485402,-3672.06,0.00012054,2]
[323560540,1714085485412,-500.0,0.00012054,2]
[323560541,1714085485422,-500.0,0.00012054,2]
[323560542,1714085485432,-500.0,0.00012054,2]
[323560543,1714085485444,-1333.15,0.00012054,2]
[323560544,1714085485454,-648.29,0.00012054,2]
[323560545,1714085485464,-1032.25,0.00012054,2]
[323560546,1714085485474,-500.0,0.00012054,2]
[323560547,1714085485484,-500.0,0.00012054,2]
[323560548,1714085485493,-500.0,0.00012054,2]
[323560549,1714085485503,-5219.88,0.00012054,2]
[323560550,1714085485512,-500.0,0.00012054,2]
[323560551,1714085485522,-743.26,0.00012054,2]
[323560552,1714085485533,-1109.64,0.00012054,2]
[323560553,1714085485543,-500.0,0.00012054,2]
[323560554,1714085485552,-579.59,0.00012054,2]
[323560555,1714085485562,-500.0,0.00012054,2]
[323560556,1714085485573,-671.43,0.00012054,2]
[323560557,1714085485583,-500.0,0.00012054,2]
[323560558,1714085485593,-573.08,0.00012054,2]
[323560559,1714085485603,-724.71,0.00012054,2]
[323560560,1714085485613,-500.0,0.00012054,2]
[323560561,1714085485624,-500.0,0.00012054,2]
[323560562,1714085485634,-500.0,0.00012054,2]
[323560563,1714085485644,-500.0,0.00012054,2]
[323560564,1714085485654,-500.0,0.00012054,2]
[323560565,1714085485663,-500.0,0.00012054,2]
[323560566,1714085485674,-513.11,0.00012054,2]
[323560567,1714085485683,-500.0,0.00012054,2]
[323560568,1714085485695,-1073.52,0.00012054,2]
[323560569,1714085485704,-500.0,0.00012054,2]
[323560570,1714085485713,-500.0,0.00012054,2]
[323560571,1714085485723,-500.0,0.00012054,2]
[323560572,1714085485733,-500.0,0.00012054,2]
[323560573,1714085485742,-1397.21,0.00012054,2]
[323560574,1714085485753,-500.0,0.00012054,2]
[323560575,1714085485763,-500.0,0.00012054,2]
[323560576,1714085485774,-500.0,0.00012054,2]
[323560577,1714085485783,-1072.42,0.00012054,2]
[323560578,1714085485794,-1599.52,0.00012054,2]
[323560579,1714085485806,-779.68,0.00012054,2]
[323560580,1714085485816,-522.24,0.00012054,2]
[323560581,1714085485827,-500.0,0.00012054,2]
[323560582,1714085485837,-548.35,0.00012054,2]
[323560583,1714085485846,-500.0,0.00012054,2]
[323560584,1714085485856,-500.0,0.00012054,2]
[323560585,1714085485866,-2788.6,0.00012054,2]
[323560586,1714085485875,-1749.46,0.00012054,2]
[323560587,1714085485885,-500.0,0.00012054,2]
[323560588,1714085485895,-500.0,0.00012054,2]
[323560589,1714085485905,-500.0,0.00012054,2]
[323560590,1714085485915,-500.0,0.00012054,2]
[323560591,1714085485925,-500.0,0.00012054,2]
[323560592,1714085485935,-562.5,0.00012054,2]
[323560593,1714085485945,-2017.13,0.00012054,2]
[323560594,1714085485955,-598.57,0.00012054,2]
[323560595,1714085485966,-2064.28,0.00012054,2]
[323560596,1714085485979,-500.0,0.00012054,2]
[323560597,1714085485988,-590.44,0.00012054,2]
[323560598,1714085485998,-556.53,0.00012054,2]
[323560599,1714085486009,-500.0,0.00012054,2]
[323560600,1714085486020,-787.32,0.00012054,2]
[323560601,1714085486031,-706.77,0.00012054,2]
[323560602,1714085486042,-500.0,0.00012054,2]
[323560603,1714085486053,-798.43,0.00012054,2]
[323560604,1714085486064,-500.0,0.00012054,2]
[323560605,1714085486074,-500.0,0.00012054,2]
[323560606,1714085486084,-906.7,0.00012054,2]
[323560607,1714085486094,-963.63,0.00012054,2]
[323560608,1714085486105,-500.0,0.00012054,2]
[323560609,1714085486116,-299.45,0.00012054,2]
[323560610,1714085486126,-500.0,0.00012054,2]
[323560611,1714085486136,-1927.39,0.00012054,2]
[323560612,1714085486147,-500.0,0.00012054,2]
[323560613,1714085486157,-816.81,0.00012054,2]
[323560614,1714085486166,-569.31,0.00012054,2]
[323560615,1714085486176,-3707.93,0.00012054,2]
[323560616,1714085486186,-500.0,0.00012054,2]
[323560617,1714085486198,-1322.29,0.00012054,2]
[323560618,1714085486208,-1098.08,0.00012054,2]
[323560619,1714085486221,-513.07,0.00012054,2]
[323560620,1714085486231,-500.0,0.00012054,2]
[323560621,1714085486241,-733.35,0.00012054,2]
[323560622,1714085486251,-500.0,0.00012054,2]
[323560623,1714085486260,-500.0,0.00012054,2]
[323560624,1714085486270,-500.0,0.00012054,2]
[323560625,1714085486280,-1378.88,0.00012054,2]
[323560626,1714085486289,-680.2,0.00012054,2]
[323560627,1714085486298,-535.03,0.00012054,2]
[323560628,1714085486308,-500.0,0.00012054,2]
[323560629,1714085486317,-500.0,0.00012054,2]
[323560630,1714085486327,-4284.78,0.00012054,2]
[323560631,1714085486337,-500.0,0.00012054,2]
[323560632,1714085486347,-500.0,0.00012054,2]
[323560633,1714085486356,-500.0,0.00012054,2]
[323560634,1714085486366,-500.0,0.00012054,2]
[323560635,1714085486376,-500.0,0.00012054,2]
[323560636,1714085486387,-1565.85,0.00012054,2]
[323560637,1714085486396,-500.0,0.00012054,2]